[Event "75th Argentine Women-ch 2024"]
[Site "Buenos Aires"]
[Date "2024.11.27"]
[Round "7.1"]
[White "Adam, Ernestina"]
[Black "Zuriel, Marisa"]
[Result "0-1"]
[ECO "B40"]
[WhiteElo "2154"]
[BlackElo "2163"]
[Annotator "RC"]
[PlyCount "56"]
[EventDate "2024.11.21"]
[EventType "swiss"]
[EventCountry "ARG"]
[SourceTitle "playchess.com"]
[Source "ChessBase"]
[SourceQuality "1"]
[TimeControl "5400+30"]

1. e4 {[%emt 0:00:03]} c5 {[%emt 0:00:08]} 2. Nf3 {[%emt 0:00:06]} e6 {[%emt 0:00:05]} 3. d4 {[%emt 0:00:11]} cxd4 {[%emt 0:00:06]} 4. Nxd4 {[%emt 0:00:09]} Bc5 {[%emt 0:00:05]} 5. Nb3 {[%emt 0:01:17]} Bb6 {[%emt 0:00:07]} 6. Bd3 {[%emt 0:01:14]} Ne7 {[%emt 0:00:07]} 7. Qe2 {[%emt 0:01:16]} O-O {[%emt 0:00:21]} 8. Be3 {[%emt 0:03:59]} f5 {[%emt 0:02:10]} 9. N1d2 {[%emt 0:06:45]} fxe4 {[%emt 0:04:31]} 10. Nxe4 {[%emt 0:04:52]} Bxe3 {[%emt 0:00:34]} 11. Qxe3 {[%emt 0:01:59]} Nf5 {[%emt 0:00:21]} 12. Qe2 {[%emt 0:06:38]} d5 {[%emt 0:03:24]} 13. Ng3 {[%emt 0:06:02]} Nxg3 {[%emt 0:04:41]} 14. hxg3 {[%emt 0:00:17]} h6 {[%emt 0:00:10]} 15. O-O-O {[%emt 0:07:07]} Qf6 {[%emt 0:01:44]} 16. f4 {[%emt 0:02:49]} Nc6 {[%emt 0:00:56]} 17. Rde1 {[%emt 0:04:57]} a5 {[%emt 0:21:13]} 18. Nc5 {[%emt 0:03:36]} a4 {[%emt 0:00:44]} 19. Nxe6 {[%emt 0:17:06]} Re8 {[%emt 0:05:59]} 20. f5 {[%emt 0:03:41]} a3 {[%emt 0:01:37]} 21. c3 {[%emt 0:00:40]} axb2+ {[%emt 0:07:24]} 22. Kxb2 {[%emt 0:02:11]} Bxe6 {[%emt 0:12:48]} 23. fxe6 {[%emt 0:00:06]} Rxa2+ {[%emt 0:01:33]} 24. Kxa2 {[%emt 0:00:39]} Qxc3 {[%emt 0:00:05]} 25. Ba6 {[%emt 0:07:58]} Ra8 {[%emt 0:02:09]} 26. e7 {[%emt 0:02:14]} Rxa6+ {[%emt 0:01:21]} 27. Qxa6 {[%emt 0:00:13]} Nb4+ {[%emt 0:00:06]} 28. Kb1 {[%emt 0:00:20]} Qb3+ {[%emt 0:00:07]} 0-1

[Event "75th Argentine Women-ch 2024"]
[Site "Buenos Aires"]
[Date "2024.11.28"]
[Round "7.2"]
[White "Amura, Claudia"]
[Black "Campos, Maria Jose"]
[Result "0-1"]
[ECO "D37"]
[WhiteElo "2183"]
[BlackElo "2272"]
[Annotator "RC"]
[PlyCount "88"]
[EventDate "2024.11.21"]
[EventType "swiss"]
[EventCountry "ARG"]
[SourceTitle "playchess.com"]
[Source "ChessBase"]
[SourceQuality "1"]
[TimeControl "5400+30"]

1. d4 {[%emt 0:00:08]} Nf6 {[%emt 0:00:46]} 2. c4 {[%emt 0:00:29]} e6 {[%emt 0:00:32]} 3. Nc3 {[%emt 0:00:38]} d5 {[%emt 0:01:15]} 4. e3 {[%emt 0:01:05]} a6 {[%emt 0:03:23]} 5. Nf3 {[%emt 0:04:29]} Nbd7 {[%emt 0:02:26]} 6. b3 {[%emt 0:08:36]} b6 {[%emt 0:03:08]} 7. Bd3 {[%emt 0:01:42]} Bb7 {[%emt 0:00:30]} 8. O-O {[%emt 0:00:37]} Bb4 {[%emt 0:02:21]} 9. Bb2 {[%emt 0:01:13]} O-O {[%emt 0:00:42]} 10. Qe2 {[%emt 0:05:32]} Bd6 {[%emt 0:13:07]} 11. e4 {[%emt 0:05:55]} dxc4 {[%emt 0:04:02]} 12. bxc4 {[%emt 0:11:15]} e5 {[%emt 0:01:41]} 13. d5 {[%emt 0:00:33]} Re8 {[%emt 0:04:21]} 14. g3 {[%emt 0:07:08]} Bc8 {[%emt 0:02:56]} 15. Bc2 {[%emt 0:02:10]} Nc5 {[%emt 0:03:42]} 16. Kg2 {[%emt 0:00:24]} h5 {[%emt 0:06:51]} 17. h3 {[%emt 0:02:35]} Nh7 {[%emt 0:04:18]} 18. Bc1 {[%emt 0:06:02]} b5 {[%emt 0:01:24]} 19. a3 {[%emt 0:03:26]} bxc4 {[%emt 0:02:29]} 20. Be3 {[%emt 0:06:36]} Nd3 {[%emt 0:13:36]} 21. Rfb1 {[%emt 0:02:55]} Qf6 {[%emt 0:03:50]} 22. Ba4 {[%emt 0:01:16]} Rd8 {[%emt 0:07:57]} 23. Bc6 {[%emt 0:03:31]} Bd7 {[%emt 0:00:56]} 24. Bxd7 {[%emt 0:01:25]} Rxd7 {[%emt 0:00:08]} 25. Nd2 {[%emt 0:00:19]} Nf4+ {[%emt 0:01:44]} 26. Bxf4 {[%emt 0:04:52]} exf4 {[%emt 0:00:22]} 27. Qxc4 {[%emt 0:00:13]} fxg3 {[%emt 0:01:54]} 28. fxg3 {[%emt 0:00:02]} Bxg3 {[%emt 0:02:13]} 29. Kxg3 {[%emt 0:04:43]} Qg5+ {[%emt 0:00:21]} 30. Kh2 {[%emt 0:00:02]} Qxd2+ {[%emt 0:00:24]} 31. Ne2 {[%emt 0:00:05]} Ng5 {[%emt 0:02:11]} 32. Rf1 {[%emt 0:05:17]} Qe3 {[%emt 0:02:29]} 33. Ng1 {[%emt 0:00:02]} Nxe4 {[%emt 0:01:58]} 34. Rf3 {[%emt 0:07:07]} Qd2+ {[%emt 0:00:54]} 35. Ne2 {[%emt 0:00:37]} Qxd5 {[%emt 0:00:28]} 36. Qxd5 {[%emt 0:00:32]} Rxd5 {[%emt 0:00:07]} 37. Re3 {[%emt 0:00:09]} Nf6 {[%emt 0:00:40]} 38. Rc1 {[%emt 0:00:20]} c5 {[%emt 0:00:35]} 39. Nf4 {[%emt 0:00:12]} Rd2+ {[%emt 0:00:58]} 40. Kg3 {[%emt 0:00:14]} Rc8 {[%emt 0:00:22]} 41. Rc4 {[%emt 0:00:15]} Rd4 {[%emt 0:00:40]} 42. Rc2 {[%emt 0:02:56]} c4 {[%emt 0:01:20]} 43. Re5 {[%emt 0:00:51]} c3 {[%emt 0:01:51]} 44. Ne2 {[%emt 0:00:48]} Rd2 {[%emt 0:04:38]} 0-1

[Event "75th Argentine Women-ch 2024"]
[Site "Buenos Aires"]
[Date "2024.11.28"]
[Round "7.3"]
[White "Brizzi, Milagros Tatiana"]
[Black "Nejanky, Maisa"]
[Result "1-0"]
[ECO "A04"]
[WhiteElo "2114"]
[BlackElo "1928"]
[Annotator "RC"]
[PlyCount "87"]
[EventDate "2024.11.21"]
[EventType "swiss"]
[EventCountry "ARG"]
[SourceTitle "playchess.com"]
[Source "ChessBase"]
[SourceQuality "1"]
[TimeControl "5400+30"]

1. e4 {[%emt 1:31:00]} c5 {[%emt 0:02:43]} 2. Nf3 {[%emt 0:00:00]} d6 {[%emt 0:00:07]} 3. d3 {[%emt 0:00:00]} Nc6 {[%emt 0:00:26]} 4. g3 {[%emt 0:00:00]} g6 {[%emt 0:00:07]} 5. Bg2 {[%emt 0:00:00]} Bg7 {[%emt 0:00:09]} 6. O-O {[%emt 0:00:00]} e6 {[%emt 0:03:55]} 7. c3 {[%emt 0:00:00]} Nge7 {[%emt 0:00:35]} 8. d4 {[%emt 0:03:30]} cxd4 {[%emt 0:14:36]} 9. cxd4 {[%emt 0:00:00]} d5 {[%emt 0:02:39]} 10. e5 {[%emt 0:00:00]} h6 {[%emt 0:02:53]} 11. Nc3 {[%emt 0:00:00]} O-O {[%emt 0:03:12]} 12. Re1 {[%emt 0:00:00]} a6 {[%emt 0:03:51]} 13. h4 {[%emt 0:00:00]} b5 {[%emt 0:04:20]} 14. Bf4 {[%emt 0:00:00]} Nf5 {[%emt 0:08:29]} 15. Bh3 {[%emt 0:00:00]} Kh7 {[%emt 0:29:33]} 16. Kh2 {[%emt 0:00:00]} f6 {[%emt 0:07:10]} 17. Rc1 {[%emt 0:00:00]} fxe5 {[%emt 0:01:44]} 18. dxe5 {[%emt 0:00:00]} Bb7 {[%emt 0:04:47]} 19. Qd2 {[%emt 0:00:00]} Qb6 {[%emt 0:03:06]} 20. Rcd1 {[%emt 0:00:00]} Rac8 {[%emt 0:03:15]} 21. Kg2 {[%emt 0:00:00]} Na5 {[%emt 0:00:48]} 22. Bxf5 {[%emt 0:00:00]} Rxf5 {[%emt 0:00:58]} 23. Nd4 {[%emt 0:00:00]} Nc4 {[%emt 0:00:47]} 24. Qe2 {[%emt 0:00:00]} Rf7 {[%emt 0:00:42]} 25. Rd3 {[%emt 0:00:00]} Rcf8 {[%emt 0:00:19]} 26. Kh3 {[%emt 0:00:00]} Bc8 {[%emt 0:00:31]} 27. b3 {[%emt 0:00:00]} Na5 {[%emt 0:00:49]} 28. Qe3 {[%emt 0:00:00]} Qd8 {[%emt 0:00:49]} 29. Nce2 {[%emt 0:00:26]} Bd7 {[%emt 0:00:40]} 30. Rc3 {[%emt 0:01:25]} b4 {[%emt 0:00:15]} 31. Rc2 {[%emt 0:00:33]} Qb8 {[%emt 0:00:33]} 32. Nc1 {[%emt 0:03:14]} Qb7 {[%emt 0:00:55]} 33. Nd3 {[%emt 0:00:25]} Nc6 {[%emt 0:00:36]} 34. Rec1 {[%emt 0:03:00]} Nxd4 {[%emt 0:00:23]} 35. Qxd4 {[%emt 0:00:02]} Bb5 {[%emt 0:00:20]} 36. Nxb4 {[%emt 0:01:42]} g5 {[%emt 0:00:52]} 37. hxg5 {[%emt 0:00:48]} hxg5 {[%emt 0:00:23]} 38. Bxg5 {[%emt 0:00:22]} Rf5 {[%emt 0:00:22]} 39. Rc7 {[%emt 0:00:59]} Qb8 {[%emt 0:00:28]} 40. Qh4+ {[%emt 0:00:38]} Kg6 {[%emt 0:00:41]} 41. Rxg7+ {[%emt 0:01:12]} Kxg7 {[%emt 0:00:11]} 42. Qh6+ {[%emt 0:00:02]} Kg8 {[%emt 0:00:34]} 43. Qg6+ {[%emt 0:00:04]} Kh8 {[%emt 0:00:05]} 44. Rh1 {[%emt 0:00:13]} 1-0

[Event "75th Argentine Women-ch 2024"]
[Site "Buenos Aires"]
[Date "2024.11.27"]
[Round "7.4"]
[White "Alvarez, Mia Morena"]
[Black "Bosco, Giuliana"]
[Result "0-1"]
[ECO "C04"]
[WhiteElo "1653"]
[BlackElo "1953"]
[Annotator "RC"]
[PlyCount "42"]
[EventDate "2024.11.21"]
[EventType "swiss"]
[EventCountry "ARG"]
[SourceTitle "playchess.com"]
[Source "ChessBase"]
[SourceQuality "1"]
[TimeControl "5400+30"]

1. e4 {[%emt 0:00:02]} e6 {[%emt 0:00:08]} 2. d4 {[%emt 0:00:10]} d5 {[%emt 0:00:10]} 3. Nd2 {[%emt 0:00:46]} Nc6 {[%emt 0:00:15]} 4. Ngf3 {[%emt 0:04:16]} Nf6 {[%emt 0:00:09]} 5. e5 {[%emt 0:00:12]} Nd7 {[%emt 0:00:07]} 6. c3 {[%emt 0:00:29]} f6 {[%emt 0:02:45]} 7. exf6 {[%emt 0:00:53]} Qxf6 {[%emt 0:01:39]} 8. Bd3 {[%emt 0:02:57]} Bd6 {[%emt 0:06:15]} 9. O-O {[%emt 0:01:32]} O-O {[%emt 0:00:35]} 10. Re1 {[%emt 0:04:44]} e5 {[%emt 0:02:48]} 11. dxe5 {[%emt 0:08:47]} Ndxe5 {[%emt 0:00:44]} 12. Bc2 {[%emt 0:00:52]} Bg4 {[%emt 0:08:45]} 13. Bb3 {[%emt 0:16:00]} Kh8 {[%emt 0:28:50]} 14. Bxd5 {[%emt 0:05:55]} Qg6 {[%emt 0:01:03]} 15. Kh1 {[%emt 0:04:16]} Qh5 {[%emt 0:04:58]} 16. h3 {[%emt 0:06:18]} Nd3 {[%emt 0:02:04]} 17. Rf1 {[%emt 0:08:41]} Bxh3 {[%emt 0:02:39]} 18. Be4 {[%emt 0:08:32]} Bxg2+ {[%emt 0:00:39]} 19. Kxg2 {[%emt 0:06:03]} Nf4+ {[%emt 0:00:11]} 20. Kg1 {[%emt 0:00:27]} Qg4+ {[%emt 0:00:07]} 21. Kh1 {[%emt 0:00:12]} Qg2# {[%emt 0:00:06]} 0-1

[Event "75th Argentine Women-ch 2024"]
[Site "Buenos Aires"]
[Date "2024.11.27"]
[Round "7.5"]
[White "Montiel Marin, Micaela Agustina"]
[Black "Maggiolo, Elisa"]
[Result "0-1"]
[ECO "A57"]
[WhiteElo "1880"]
[BlackElo "1922"]
[Annotator "RC"]
[PlyCount "58"]
[EventDate "2024.11.21"]
[EventType "swiss"]
[EventCountry "ARG"]
[SourceTitle "playchess.com"]
[Source "ChessBase"]
[SourceQuality "1"]
[TimeControl "5400+30"]

1. d4 {[%emt 0:00:03]} Nf6 {[%emt 0:00:33]} 2. c4 {[%emt 0:00:06]} g6 {[%emt 0:00:19]} 3. f3 {[%emt 0:00:06]} c5 {[%emt 0:00:41]} 4. d5 {[%emt 0:00:10]} b5 {[%emt 0:00:16]} 5. cxb5 {[%emt 0:01:00]} a6 {[%emt 0:00:11]} 6. e4 {[%emt 0:00:35]} d6 {[%emt 0:00:27]} 7. Nc3 {[%emt 0:00:49]} Bg7 {[%emt 0:00:24]} 8. Bd3 {[%emt 0:03:03]} O-O {[%emt 0:02:41]} 9. Nge2 {[%emt 0:00:20]} Nbd7 {[%emt 0:01:19]} 10. Bf4 {[%emt 0:06:21]} Nh5 {[%emt 0:02:55]} 11. Be3 {[%emt 0:00:23]} Ne5 {[%emt 0:00:40]} 12. O-O {[%emt 0:02:05]} Nxd3 {[%emt 0:02:37]} 13. Qxd3 {[%emt 0:00:05]} axb5 {[%emt 0:01:30]} 14. Qd2 {[%emt 0:05:23]} b4 {[%emt 0:02:31]} 15. Nd1 {[%emt 0:00:13]} Ba6 {[%emt 0:03:03]} 16. Re1 {[%emt 0:04:16]} Bc4 {[%emt 0:15:37]} 17. Nc1 {[%emt 0:02:20]} Ra6 {[%emt 0:05:29]} 18. Qc2 {[%emt 0:02:17]} Bb5 {[%emt 0:00:36]} 19. Rb1 {[%emt 0:23:53]} Be5 {[%emt 0:12:03]} 20. Qd2 {[%emt 0:03:11]} e6 {[%emt 0:10:24]} 21. Bg5 {[%emt 0:14:16]} Qa8 {[%emt 0:03:55]} 22. Kh1 {[%emt 0:01:58]} exd5 {[%emt 0:03:45]} 23. exd5 {[%emt 0:01:19]} Bc4 {[%emt 0:01:54]} 24. Ne3 {[%emt 0:01:47]} Bxa2 {[%emt 0:07:04]} 25. Nxa2 {[%emt 0:00:11]} Rxa2 {[%emt 0:00:01]} 26. Nc4 {[%emt 0:02:37]} Bc3 {[%emt 0:01:17]} 27. Qe2 {[%emt 0:06:57]} Bxe1 {[%emt 0:00:20]} 28. Rxe1 {[%emt 0:00:07]} Ra1 {[%emt 0:01:23]} 29. Nxd6 {[%emt 0:01:04]} Qa6 {[%emt 0:01:56]} 0-1

[Event "75th Argentine Women-ch 2024"]
[Site "Buenos Aires"]
[Date "2024.11.27"]
[Round "7.6"]
[White "Ramirez, Marysol"]
[Black "Bossero, Ingrid"]
[Result "1-0"]
[ECO "D02"]
[WhiteElo "1824"]
[BlackElo "1694"]
[Annotator "NA RC"]
[PlyCount "41"]
[EventDate "2024.11.21"]
[EventType "swiss"]
[EventCountry "ARG"]
[SourceTitle "playchess.com"]
[Source "ChessBase"]
[SourceQuality "1"]
[TimeControl "5400+30"]

1. d4 {[%emt 0:00:13]} d5 {[%emt 0:00:03]} 2. Bf4 {[%emt 0:00:04]} e6 {[%emt 1:31:27]} 3. Nf3 {[%emt 1:31:43]} Nf6 {[%emt 0:00:00]} 4. e3 {[%emt 0:00:00]} Be7 {[%emt 0:00:00]} 5. Bd3 {[%emt 0:00:00]} O-O {[%emt 0:00:00]} 6. Nbd2 {[%emt 0:00:00]} Nbd7 {[%emt 0:00:00]} 7. Ne5 {[%emt 0:00:00]} c5 {[%emt 0:00:00]} 8. c3 {[%emt 0:02:30]} a6 {[%emt 0:00:00]} 9. Qf3 {[%emt 0:00:30]} Re8 {[%emt 0:00:00]} 10. h4 {[%emt 0:00:00]} Ne4 {[%emt 0:00:00]} 11. Nxe4 {[%emt 0:00:00]} dxe4 {[%emt 0:00:00]} 12. Bxe4 {[%emt 0:00:00]} f6 {[%emt 0:00:00]} 13. Bxh7+ {[%emt 0:00:00]} Kxh7 {[%emt 0:00:00]} 14. Qh5+ {[%emt 0:00:00]} Kg8 {[%emt 0:00:00]} 15. Nf7 {[%emt 0:00:00]} Qb6 {[%emt 0:00:00] [#]} 16. Nh6+ $1 {[%emt 0:00:00]} gxh6 {[%emt 0:00:00]} 17. Rh3 {[%emt 0:04:00]} Bd6 {[%emt 0:00:00]} 18. Qxe8+ {[%emt 0:00:00]} Nf8 {[%emt 0:00:00]} 19. Rg3+ {[%emt 0:00:00]} Kh8 {[%emt 0:00:00]} 20. Qf7 {[%emt 0:00:00]} Qc7 {[%emt 0:00:00]} 21. Rg8# {[%emt 0:02:00]} 1-0

[Event "75th Argentine Women-ch 2024"]
[Site "Buenos Aires"]
[Date "2024.11.27"]
[Round "7.7"]
[White "Macuri, Genesis"]
[Black "Perez Lascano, Lucila"]
[Result "0-1"]
[ECO "A46"]
[WhiteElo "1449"]
[BlackElo "1593"]
[Annotator "NA RC"]
[PlyCount "56"]
[EventDate "2024.11.21"]
[EventType "swiss"]
[EventCountry "ARG"]
[SourceTitle "playchess.com"]
[Source "ChessBase"]
[SourceQuality "1"]
[TimeControl "5400+30"]

1. d4 {[%emt 0:00:02]} Nf6 {[%emt 0:00:10]} 2. Nf3 {[%emt 0:00:06]} g6 {[%emt 0:00:15]} 3. g3 {[%emt 0:00:08]} c5 {[%emt 0:00:31]} 4. dxc5 {[%emt 0:00:18]} Na6 {[%emt 0:00:34]} 5. Bg2 {[%emt 0:00:20]} Nxc5 {[%emt 0:00:33]} 6. O-O {[%emt 0:00:12]} Bg7 {[%emt 0:01:02]} 7. Nc3 {[%emt 0:00:20]} O-O {[%emt 0:02:27]} 8. b3 {[%emt 0:00:39]} Nfe4 {[%emt 0:02:15]} 9. Nxe4 {[%emt 0:15:39]} Nxe4 {[%emt 0:00:55]} 10. Nd4 {[%emt 0:03:10]} Nc3 {[%emt 0:15:14]} 11. Qd2 {[%emt 0:01:38]} Bxd4 {[%emt 0:01:09]} 12. Qxd4 {[%emt 0:00:26]} Nxe2+ {[%emt 0:00:26]} 13. Kh1 {[%emt 0:00:06]} Nxd4 {[%emt 0:00:07]} 14. c3 {[%emt 0:01:14]} Nc6 {[%emt 0:02:28]} 15. Bf4 {[%emt 0:02:33]} d6 {[%emt 0:00:32]} 16. Rfd1 {[%emt 0:00:41]} Bf5 {[%emt 0:01:07]} 17. Rac1 {[%emt 0:08:10]} Qc8 {[%emt 0:02:50]} 18. b4 {[%emt 0:03:00]} Bh3 {[%emt 0:01:24]} 19. b5 {[%emt 0:25:59]} Ne5 {[%emt 0:02:51]} 20. Bxe5 {[%emt 0:00:55]} dxe5 {[%emt 0:00:20]} 21. Rd2 {[%emt 0:02:12]} Bxg2+ {[%emt 0:02:15]} 22. Kxg2 {[%emt 0:00:39]} Rd8 {[%emt 0:02:00]} 23. Rcd1 {[%emt 0:00:52]} Rxd2 {[%emt 0:00:40]} 24. Rxd2 {[%emt 0:00:23]} Qc7 {[%emt 0:01:02]} 25. Rd3 {[%emt 0:04:26]} Rd8 {[%emt 0:01:29]} 26. Re3 {[%emt 0:01:01]} Rd2 {[%emt 0:00:38]} 27. a4 {[%emt 0:06:06]} Rc2 {[%emt 0:01:32]} 28. h4 {[%emt 0:06:02]} Qc5 {[%emt 0:01:38]} 0-1

[Event "75th Argentine Women-ch 2024"]
[Site "Buenos Aires"]
[Date "2024.11.27"]
[Round "7.8"]
[White "Herrera, Solange"]
[Black "Quiroga Ortiz, Isabella"]
[Result "1-0"]
[ECO "E76"]
[WhiteElo "1880"]
[BlackElo "1508"]
[Annotator "NA RC"]
[PlyCount "85"]
[EventDate "2024.11.21"]
[EventType "swiss"]
[EventCountry "ARG"]
[SourceTitle "playchess.com"]
[Source "ChessBase"]
[SourceQuality "1"]
[TimeControl "5400+30"]

1. d4 {[%emt 0:01:01]} Nf6 {[%emt 0:00:51]} 2. c4 {[%emt 0:00:04]} g6 {[%emt 0:00:25]} 3. Nc3 {[%emt 0:00:04]} Bg7 {[%emt 0:00:09]} 4. e4 {[%emt 0:01:02]} d6 {[%emt 0:00:16]} 5. f4 {[%emt 0:01:36]} Nc6 {[%emt 0:01:23]} 6. d5 {[%emt 0:01:48]} Nb8 {[%emt 0:00:05]} 7. Nf3 {[%emt 0:00:12]} Nbd7 {[%emt 0:00:27]} 8. Be2 {[%emt 0:02:28]} O-O {[%emt 0:02:06]} 9. O-O {[%emt 0:00:06] E76: King's Indian: Four Pawns Attack: Lines specific to 6 Nf3 move-order.} e5 {[%emt 0:03:42]} 10. fxe5 {[%emt 0:01:13]} dxe5 {[%emt 0:00:09]} 11. Bg5 {[%emt 0:01:04]} h6 {[%emt 0:03:18]} 12. Bh4 {[%emt 0:01:22]} Qe7 {[%emt 0:03:26]} 13. Qc2 {[%emt 0:06:38]} a5 {[%emt 0:05:57]} 14. a3 {[%emt 0:08:58]} Nc5 {[%emt 0:02:42]} 15. b4 {[%emt 0:02:08]} axb4 {[%emt 0:00:22]} 16. axb4 {[%emt 0:00:04]} Rxa1 {[%emt 0:00:16]} 17. Rxa1 {[%emt 0:00:01]} Na6 {[%emt 0:00:08]} 18. b5 {[%emt 0:00:07]} Nc5 {[%emt 0:00:26]} 19. Nd2 {[%emt 0:00:30]} g5 {[%emt 0:03:45]} 20. Bf2 {[%emt 0:05:20]} Bg4 {[%emt 0:09:59]} 21. h3 {[%emt 0:00:29]} Bxe2 {[%emt 0:02:33]} 22. Nxe2 {[%emt 0:00:05]} Nh5 {[%emt 0:09:26]} 23. Ng3 {[%emt 0:00:27]} Nxg3 {[%emt 0:05:08]} 24. Bxg3 {[%emt 0:00:06]} Qd7 {[%emt 0:08:35]} (24... Rb8 $16) 25. Bf2 {[%emt 0:06:37]} Qd6 {[%emt 0:00:47]} 26. Nb3 {[%emt 0:01:05]} Nxb3 {[%emt 0:00:41]} 27. Qxb3 {[%emt 0:00:04]} f5 {[%emt 0:02:02]} 28. c5 {[%emt 0:00:13]} Qe7 {[%emt 0:00:19]} 29. d6+ {[%emt 0:00:00]} Qf7 {[%emt 0:01:17]} 30. Qxf7+ {[%emt 0:03:37]} Rxf7 {[%emt 0:00:11]} 31. Ra8+ {[%emt 0:01:11]} Kh7 {[%emt 0:01:25]} 32. exf5 {[%emt 0:01:06]} cxd6 {[%emt 0:00:38]} 33. cxd6 {[%emt 0:00:05]} Rd7 {[%emt 0:02:44]} 34. Bc5 {[%emt 0:00:29]} h5 {[%emt 0:02:01]} 35. Rc8 {[%emt 0:01:04]} Bf6 {[%emt 0:02:39]} 36. Rc7 {[%emt 0:00:18]} Rg7 {[%emt 0:00:14]} 37. b6 {[%emt 0:02:23]} g4 {[%emt 0:04:51]} 38. hxg4 {[%emt 0:00:05]} hxg4 {[%emt 0:00:08]} 39. d7 {[%emt 0:00:34]} Bd8 {[%emt 0:00:59]} 40. Rxb7 {[%emt 0:00:25]} e4 {[%emt 0:00:25]} 41. Rc7 {[%emt 0:03:19]} Bf6 {[%emt 0:00:48]} 42. b7 {[%emt 0:00:17]} Rg8 {[%emt 0:02:29]} 43. d8=Q+ {[%emt 0:01:06]} 1-0

[Event "75th Argentine Women-ch 2024"]
[Site "Buenos Aires"]
[Date "2024.11.27"]
[Round "7.9"]
[White "Gaite, Karen Nerina"]
[Black "Perez Mosqueda, Valeria Ritzabeth"]
[Result "1-0"]
[ECO "A21"]
[WhiteElo "1997"]
[BlackElo "1476"]
[Annotator "RC"]
[PlyCount "95"]
[EventDate "2024.11.21"]
[EventType "swiss"]
[EventCountry "ARG"]
[SourceTitle "playchess.com"]
[Source "ChessBase"]
[SourceQuality "1"]
[TimeControl "5400+30"]

1. c4 {[%emt 0:00:08]} e5 {[%emt 0:00:52]} 2. Nc3 {[%emt 0:00:15]} Bb4 {[%emt 0:00:09]} 3. Nd5 {[%emt 0:02:26]} a5 {[%emt 0:00:09]} 4. a3 {[%emt 0:00:40]} Be7 {[%emt 0:00:10]} 5. g3 {[%emt 0:00:38]} f5 {[%emt 0:00:55]} 6. Bg2 {[%emt 0:00:36]} Nf6 {[%emt 0:00:21]} 7. Nxe7 {[%emt 0:01:14]} Qxe7 {[%emt 0:00:03]} 8. b3 {[%emt 0:00:09]} d6 {[%emt 0:01:57]} 9. Bb2 {[%emt 0:00:21]} Nc6 {[%emt 0:01:35]} 10. e3 {[%emt 0:02:15]} Be6 {[%emt 0:00:40]} 11. Rc1 {[%emt 0:00:34]} O-O {[%emt 0:01:18]} 12. Ne2 {[%emt 0:00:23]} Qf7 {[%emt 0:00:25]} 13. d4 {[%emt 1:27:21]} Bd7 {[%emt 0:05:31]} 14. O-O {[%emt 0:00:00]} Rad8 {[%emt 0:07:43]} 15. Qe1 {[%emt 0:00:00]} Ng4 {[%emt 0:01:34]} 16. Bd5 {[%emt 0:00:00]} Be6 {[%emt 0:01:14]} 17. h3 {[%emt 0:00:00]} Nf6 {[%emt 0:00:51]} 18. Bxe6 {[%emt 0:00:00]} Qxe6 {[%emt 0:00:34]} 19. d5 {[%emt 0:00:00]} Nxd5 {[%emt 0:00:59]} 20. cxd5 {[%emt 0:00:00]} Qxd5 {[%emt 0:00:13]} 21. Qd1 {[%emt 0:00:00]} Qf3 {[%emt 0:01:12]} 22. Nc3 {[%emt 0:00:00]} Qxd1 {[%emt 0:01:46]} 23. Rfxd1 {[%emt 0:00:00]} f4 {[%emt 0:05:35]} 24. exf4 {[%emt 0:00:00]} exf4 {[%emt 0:00:29]} 25. g4 {[%emt 0:00:00]} g5 {[%emt 0:02:43]} 26. Nd5 {[%emt 0:00:00]} Rf7 {[%emt 0:07:43]} 27. Bf6 {[%emt 0:00:00]} Re8 {[%emt 0:03:42]} 28. Re1 {[%emt 0:00:00]} Ne5 {[%emt 0:02:36]} 29. Bxe5 {[%emt 0:00:00]} dxe5 {[%emt 0:00:23]} 30. Nxc7 {[%emt 0:00:00]} Ree7 {[%emt 0:06:28]} 31. Nd5 {[%emt 0:00:00]} Re6 {[%emt 0:03:27]} 32. Rc7 {[%emt 0:00:00]} Rxc7 {[%emt 0:03:32]} 33. Nxc7 {[%emt 0:00:00]} Re7 {[%emt 0:00:53]} 34. Nd5 {[%emt 0:00:00]} Re6 {[%emt 0:00:56]} 35. Kg2 {[%emt 0:00:00]} Kg7 {[%emt 0:03:11]} 36. Kf3 {[%emt 0:00:00]} Kg6 {[%emt 0:02:21]} 37. Ke4 {[%emt 0:00:00]} h6 {[%emt 0:03:15]} 38. Rc1 {[%emt 0:00:00]} b6 {[%emt 0:01:12]} 39. Rc6 {[%emt 0:00:00]} Rxc6 {[%emt 0:00:35]} 40. Ne7+ {[%emt 0:00:00]} Kf6 {[%emt 0:00:14]} 41. Nxc6 {[%emt 0:00:00]} Ke6 {[%emt 0:00:38]} 42. Nxe5 {[%emt 0:00:00]} Ke7 {[%emt 0:02:46]} 43. Kd5 {[%emt 0:00:00]} Kd8 {[%emt 0:00:21]} 44. Kc6 {[%emt 0:00:00]} Kc8 {[%emt 0:00:38]} 45. Kxb6 {[%emt 0:00:00]} Kb8 {[%emt 0:00:26]} 46. Kxa5 {[%emt 0:00:00]} Kb7 {[%emt 0:29:15]} 47. Kb5 {[%emt 0:17:00]} Ka7 {[%emt 0:00:00]} 48. Kc6 {[%emt 0:00:00]} 1-0